fUST/lending_fUST_20260117
["ID","MTS","AMOUNT","RATE_DAILY","PERIOD"]
[402331324,1768659087375,-500.0,0.00017534,3]
[402331326,1768659087385,-500.0,0.00017534,3]
[402331328,1768659087395,-609.3,0.00017534,3]
[402331330,1768659087406,-2815.19,0.00017534,3]
[402331332,1768659087428,-647.23,0.00017534,3]
[402331334,1768659087438,-500.0,0.00017534,3]
[402331336,1768659087448,-500.0,0.00017534,3]
[402331338,1768659087458,-2008.11,0.00017534,3]
[402331340,1768659087468,-992.91,0.00017534,3]
[402331342,1768659087477,-500.0,0.00017534,3]
[402331344,1768659087487,-500.0,0.00017534,3]
[402331346,1768659087496,-557.01,0.00017534,3]
[402331348,1768659087510,-759.0,0.00017534,3]
[402331350,1768659087520,-793.38,0.00017534,3]
[402331352,1768659087529,-561.04,0.00017534,3]
[402331354,1768659087538,-500.0,0.00017534,3]
[402331356,1768659087547,-500.0,0.00017534,3]
[402331358,1768659087556,-620.44,0.00017534,3]
[402331360,1768659087566,-599.93,0.00017534,3]
[402331362,1768659087575,-500.0,0.00017534,3]
[402331364,1768659087585,-500.0,0.00017534,3]
[402331366,1768659087594,-722.98,0.00017534,3]
[402331368,1768659087603,-500.0,0.00017534,3]
[402331370,1768659087612,-456.1033492,0.00017534,2]
[402331372,1768659087621,-893.02,0.00017534,3]
[402331374,1768659087631,-945.42,0.00017534,3]
[402331376,1768659087640,-1045.03,0.00017534,3]
[402331378,1768659087649,-8441.37,0.00017534,3]
[402331380,1768659087659,-1046.6,0.00017534,3]
[402331382,1768659087668,-645.09,0.00017534,3]
[402331384,1768659087677,-500.0,0.00017534,3]
[402331386,1768659087686,-500.0,0.00017534,3]
[402331388,1768659087695,-515.79211625,0.00017534,3]
[402331390,1768659087703,-598.18,0.00017534,3]
[402331392,1768659087712,-500.0,0.00017534,3]
[402331393,1768659087722,-500.0,0.00017534,3]
[402331396,1768659087731,-500.0,0.00017534,3]
[402331398,1768659087741,-980.47,0.00017534,3]
[402331400,1768659087750,-1662.71,0.00017534,3]
[402331402,1768659087760,-500.0,0.00017534,3]
[402331403,1768659087769,-500.0,0.00017534,3]
[402331405,1768659087779,-500.0,0.00017534,3]
[402331407,1768659087788,-583.28,0.00017534,3]
[402331409,1768659087797,-500.0,0.00017534,3]
[402331411,1768659087806,-500.0,0.00017534,3]
[402331413,1768659087816,-916.68,0.00017534,3]
[402331415,1768659087826,-500.0,0.00017534,3]
[402331417,1768659087835,-500.0,0.00017534,3]
[402331419,1768659087844,-1239.92,0.00017534,3]
[402331421,1768659087853,-500.0,0.00017534,3]
[402331423,1768659087866,-959.49,0.00017534,3]
[402331425,1768659087876,-1628.03,0.00017534,3]
[402331427,1768659087886,-1330.27,0.00017534,3]
[402331429,1768659087896,-645.96,0.00017534,3]
[402331431,1768659087906,-500.0,0.00017534,3]
[402331433,1768659087916,-500.0,0.00017534,3]
[402331435,1768659087925,-500.0,0.00017534,3]
[402331437,1768659087935,-500.0,0.00017534,3]
[402331439,1768659087944,-500.0,0.00017534,3]
[402331441,1768659087953,-1605.91,0.00017534,3]
[402331443,1768659087962,-2039.45,0.00017534,3]
[402331445,1768659087972,-500.0,0.00017534,3]
[402331447,1768659087981,-372.96596375,0.00017534,3]
[402331449,1768659087991,-1033.72,0.00017534,3]
[402331451,1768659087999,-782.18,0.00017534,3]
[402331453,1768659088008,-500.0,0.00017534,3]
[402331455,1768659088017,-784.27,0.00017534,3]
[402331457,1768659088026,-500.0,0.00017534,3]
[402331459,1768659088035,-500.0,0.00017534,3]
[402331461,1768659088045,-1140.99,0.00017534,3]
[402331463,1768659088054,-500.0,0.00017534,3]
[402331465,1768659088063,-791.1,0.00017534,3]
[402331467,1768659088072,-500.0,0.00017534,3]
[402331469,1768659088081,-500.0,0.00017534,3]
[402331471,1768659088091,-500.0,0.00017534,3]
[402331472,1768659088101,-3211.22,0.00017534,3]
[402331474,1768659088110,-795.5,0.00017534,3]
[402331475,1768659088119,-500.0,0.00017534,3]
[402331477,1768659088129,-500.0,0.00017534,3]
[402331479,1768659088139,-1112.08,0.00017534,3]
[402331481,1768659088148,-632.75,0.00017534,3]
[402331483,1768659088157,-500.0,0.00017534,3]
[402331485,1768659088166,-500.0,0.00017534,3]
[402331487,1768659088176,-500.0,0.00017534,3]
[402331489,1768659088185,-601.82,0.00017534,3]
[402331491,1768659088195,-598.94,0.00017534,3]
[402331493,1768659088205,-1550.67,0.00017534,3]
[402331495,1768659088215,-2433.28,0.00017534,3]
[402331497,1768659088225,-508.15,0.00017534,3]
[402331499,1768659088235,-500.0,0.00017534,3]
[402331501,1768659088246,-555.88,0.00017534,3]
[402331503,1768659088255,-500.0,0.00017534,3]
[402331505,1768659088265,-511.95572068,0.00017534,3]
[402331507,1768659088275,-1739.47,0.00017534,3]
[402331509,1768659088284,-500.0,0.00017534,3]
[402331511,1768659088294,-1598.4,0.00017534,3]
[402331513,1768659088303,-1063.53,0.00017534,3]
[402331515,1768659088312,-500.0,0.00017534,3]
[402331517,1768659088321,-1469.78,0.00017534,3]
[402331519,1768659088331,-500.0,0.00017534,3]
[402331521,1768659088341,-500.0,0.00017534,3]
[402331523,1768659088351,-934.75,0.00017534,3]
[402331525,1768659088361,-915.24,0.00017534,3]
[402331527,1768659088371,-733.19,0.00017534,3]
[402331529,1768659088380,-816.16,0.00017534,3]
[402331531,1768659088391,-1878.43,0.00017534,3]
[402331533,1768659088401,-500.0,0.00017534,3]
[402331535,1768659088410,-1089.71,0.00017534,3]
[402331537,1768659088420,-500.0,0.00017534,3]
[402331539,1768659088431,-500.0,0.00017534,3]
[402331541,1768659088440,-750.97,0.00017534,3]
[402331542,1768659088449,-500.0,0.00017534,3]
[402331544,1768659088470,-500.0,0.00017534,3]
[402331546,1768659088485,-1374.51,0.00017534,3]
[402331548,1768659088494,-1031.25,0.00017534,3]
[402331549,1768659088503,-1506.77,0.00017534,3]
[402331550,1768659088511,-500.0,0.00017534,3]
[402331551,1768659088520,-654.05,0.00017534,3]
[402331552,1768659088529,-253.82902155,0.00017534,3]
[402331553,1768659088538,-500.0,0.00017534,3]
[402331554,1768659088547,-1254.14,0.00017534,3]
[402331555,1768659088555,-885.27,0.00017534,3]
[402331556,1768659088564,-1550.94,0.00017534,3]
[402331557,1768659088573,-500.0,0.00017534,3]
[402331558,1768659088583,-500.0,0.00017534,3]
[402331559,1768659088592,-1929.23,0.00017534,3]
[402331560,1768659088601,-500.0,0.00017534,3]
[402331561,1768659088611,-871.62,0.00017534,3]
[402331562,1768659088620,-500.0,0.00017534,3]
[402331563,1768659088629,-500.0,0.00017534,3]
[402331565,1768659088638,-375.27196908,0.00017534,3]
[402331567,1768659088648,-500.0,0.00017534,3]
[402331569,1768659088658,-1606.32,0.00017534,3]
[402331571,1768659088667,-484.52529222,0.00017534,3]
[402331573,1768659088677,-548.96,0.00017534,3]
[402331575,1768659088688,-500.0,0.00017534,3]
[402331578,1768659088699,-500.0,0.00017534,3]
[402331580,1768659088709,-500.0,0.00017534,3]
[402331582,1768659088719,-747.4,0.00017534,3]
[402331584,1768659088728,-977.24,0.00017534,3]
[402331586,1768659088738,-244.26437665,0.00017534,3]
[402331588,1768659088748,-500.0,0.00017534,3]
[402331590,1768659088758,-500.0,0.00017534,3]
[402331592,1768659088768,-500.0,0.00017534,2]
[402331594,1768659088777,-1149.89,0.00017534,3]
[402331596,1768659088787,-500.0,0.00017534,3]
[402331598,1768659088797,-500.0,0.00017534,3]
[402331600,1768659088808,-500.0,0.00017534,3]
[402331601,1768659088818,-500.0,0.00017534,3]
[402331603,1768659088827,-500.0,0.00017534,3]
[402331605,1768659088836,-500.0,0.00017534,3]
[402331607,1768659088846,-500.0,0.00017534,2]
[402331609,1768659088857,-500.0,0.00017534,3]
[402331611,1768659088872,-500.0,0.00017534,3]
[402331613,1768659088881,-500.0,0.00017534,3]
[402331615,1768659088890,-574.13,0.00017534,3]
[402331617,1768659088902,-602.36,0.00017534,3]
[402331619,1768659088911,-502.51,0.00017534,3]
[402331621,1768659088920,-500.0,0.00017534,2]
[402331623,1768659088929,-2138.33066815,0.000176,2]
[402331625,1768659088939,-553.64373807,0.00017623,2]
[402331627,1768659088948,-2674.60743027,0.00017623,2]
[402331629,1768659088957,-5793.716476,0.0001771,7]
[402331631,1768659088967,-236.2,0.00017715,2]
[402331633,1768659088975,-3000.0,0.00017798,7]
[402331635,1768659088985,-3608.47613542,0.000178,3]
[402331637,1768659088993,-16035.53261385,0.000178,3]
[402331639,1768659089003,-1562.62825924,0.00017808,50]
[402331641,1768659089012,-819.05922748,0.00017808,3]
[402331643,1768659089021,-500.0,0.00017808,3]
[402331645,1768659089030,-978.82,0.00017808,3]
[402331647,1768659089041,-500.0,0.00017808,3]
[402331649,1768659089049,-500.0,0.00017808,3]
[402331651,1768659089059,-1000.0,0.00017808,2]
[402331653,1768659089068,-1229.39,0.00017808,3]
[402331655,1768659089078,-500.0,0.00017808,3]
[402331657,1768659089088,-500.0,0.00017808,3]
[402331659,1768659089098,-556.53,0.00017808,3]
[402331661,1768659089107,-500.0,0.00017808,3]
[402331663,1768659089116,-500.0,0.00017808,3]
[402331665,1768659089126,-500.0,0.00017808,3]
[402331667,1768659089135,-500.0,0.00017808,3]
[402331669,1768659089145,-500.0,0.00017808,3]
[402331671,1768659089154,-672.56,0.00017808,3]
[402331693,1768659089346,-500.0,0.00017808,3]
[402331695,1768659089362,-792.58,0.00017808,3]
[402331697,1768659089371,-504.49,0.00017808,3]
[402331699,1768659089381,-673.73,0.00017808,3]
[402331701,1768659089391,-567.58,0.00017808,3]
[402331703,1768659089400,-1022.08,0.00017808,3]
[402331705,1768659089410,-500.0,0.00017808,3]
[402331707,1768659089419,-762.34,0.00017808,3]
[402331709,1768659089429,-500.0,0.00017808,3]
[402331711,1768659089438,-950.57,0.00017808,3]
[402331713,1768659089448,-500.0,0.00017808,3]
[402331715,1768659089458,-412.81460161,0.00017808,3]
[402331717,1768659089467,-500.0,0.00017808,3]
[402331719,1768659089476,-272.37095351,0.00017808,3]
[402331721,1768659089485,-500.0,0.00017808,3]
[402331723,1768659089498,-1072.24,0.00017808,3]
[402331725,1768659089507,-500.0,0.00017808,3]
[402331727,1768659089517,-275.38497984,0.00017808,3]
[402331729,1768659089526,-507.22,0.00017808,3]
[402331731,1768659089535,-500.0,0.00017808,3]
[402331733,1768659089547,-500.0,0.00017808,3]
[402331735,1768659089556,-836.71,0.00017808,3]
[402331737,1768659089566,-500.0,0.00017808,3]
[402331739,1768659089575,-500.0,0.00017808,3]
[402331741,1768659089585,-500.0,0.00017808,3]
[402331743,1768659089595,-1098.82,0.00017808,3]
[402331745,1768659089604,-500.0,0.00017808,3]
[402331746,1768659089614,-500.0,0.00017808,3]
[402331749,1768659089623,-500.0,0.00017808,3]
[402331751,1768659089633,-500.0,0.00017808,3]
[402331752,1768659089645,-500.0,0.00017808,3]
[402331755,1768659089654,-1864.45,0.00017808,3]
[402331757,1768659089664,-500.0,0.00017808,3]
[402331759,1768659089675,-772.16,0.00017808,3]
[402331761,1768659089684,-500.0,0.00017808,3]
[402331762,1768659089695,-523.8,0.00017808,3]
[402331764,1768659089706,-500.0,0.00017808,3]
[402331766,1768659089716,-275.02958199,0.00017808,3]
[402331768,1768659089727,-500.0,0.00017808,3]
[402331771,1768659089737,-785.13,0.00017808,3]
[402331773,1768659089747,-1777.27,0.00017808,3]
[402331774,1768659089756,-875.55,0.00017808,3]
[402331776,1768659089765,-500.0,0.00017808,3]
[402331778,1768659089774,-964.42,0.00017808,3]
[402331780,1768659089784,-564.35,0.00017808,3]
[402331782,1768659089793,-612.1,0.00017808,3]
[402331784,1768659089802,-500.0,0.00017808,3]
[402331786,1768659089812,-643.39,0.00017808,3]
[402331788,1768659089821,-976.59,0.00017808,3]
[402331790,1768659089832,-974.97,0.00017808,3]
[402331792,1768659089841,-1699.56,0.00017808,3]
[402331794,1768659089853,-500.0,0.00017808,3]
[402331796,1768659089866,-500.0,0.00017808,3]
[402331798,1768659089876,-500.0,0.00017808,3]
[402331800,1768659089885,-999.91,0.00017808,3]
[402331802,1768659089895,-500.0,0.00017808,3]
[402331804,1768659089905,-500.0,0.00017808,3]
[402331806,1768659089916,-530.71,0.00017808,3]
[402331808,1768659089925,-500.0,0.00017808,3]
[402331810,1768659089938,-1003.52,0.00017808,3]
[402331812,1768659089947,-741.6,0.00017808,3]
[402331814,1768659089956,-500.0,0.00017808,3]
[402331816,1768659089966,-500.0,0.00017808,3]
[402331818,1768659089975,-565.41,0.00017808,3]
[402331820,1768659089984,-979.46,0.00017808,3]
[402331822,1768659089993,-895.32,0.00017808,3]
[402331824,1768659090003,-904.31,0.00017808,3]
[402331826,1768659090012,-903.29,0.00017808,3]
[402331827,1768659090021,-500.0,0.00017808,3]
[402331829,1768659090031,-500.0,0.00017808,3]
[402331831,1768659090041,-1000.0,0.00017808,2]
[402331833,1768659090050,-500.0,0.00017808,3]
[402331835,1768659090059,-500.0,0.00017808,3]
[402331838,1768659090070,-500.0,0.00017808,3]
[402331840,1768659090079,-692.98,0.00017808,3]
[402331842,1768659090089,-500.0,0.00017808,3]
[402331844,1768659090098,-156.77330136,0.00017808,2]
[402331846,1768659090108,-500.0,0.00017808,3]
[402331847,1768659090117,-251.11469402,0.00017808,3]
[402331849,1768659090127,-500.0,0.00017808,3]
[402331851,1768659090136,-1541.12,0.00017808,3]
[402331853,1768659090146,-1586.94,0.00017808,3]
[402331855,1768659090155,-500.0,0.00017808,3]
[402331857,1768659090165,-500.0,0.00017808,3]
[402331859,1768659090174,-500.0,0.00017808,3]
[402331861,1768659090184,-500.0,0.00017808,3]
[402331863,1768659090194,-557.26,0.00017808,3]
[402331865,1768659090203,-1200.0,0.00017808,2]
[402331867,1768659090213,-500.0,0.00017808,3]
[402331869,1768659090223,-960.56,0.00017808,3]
[402331871,1768659090233,-500.0,0.00017808,3]
[402331873,1768659090242,-1187.76,0.00017808,3]
[402331875,1768659090252,-500.0,0.00017808,3]
[402331877,1768659090261,-524.86,0.00017808,3]
[402331879,1768659090271,-500.0,0.00017808,3]
[402331881,1768659090281,-2078.62,0.00017808,3]
[402331883,1768659090290,-500.0,0.00017808,3]
[402331885,1768659090300,-500.0,0.00017808,3]
[402331887,1768659090310,-500.0,0.00017808,3]
[402331889,1768659090319,-510.56,0.00017808,3]
[402331891,1768659090328,-500.0,0.00017808,3]
[402331893,1768659090337,-309.63209923,0.00017808,3]
[402331894,1768659090346,-500.0,0.00017808,3]
[402331896,1768659090357,-504.11,0.00017808,3]
[402331898,1768659090367,-500.0,0.00017808,3]
[402331900,1768659090376,-500.0,0.00017808,3]
[402331902,1768659090386,-500.0,0.00017808,3]
[402331904,1768659090395,-500.0,0.00017808,3]
[402331906,1768659090405,-500.0,0.00017808,3]
[402331908,1768659090414,-1289.75,0.00017808,3]
[402331910,1768659090424,-547.09236024,0.00017808,3]
[402331912,1768659090433,-359.73801273,0.00017808,3]
[402331914,1768659090443,-759.35,0.00017808,3]
[402331916,1768659090452,-500.0,0.00017808,3]
[402331918,1768659090461,-500.0,0.00017808,3]
[402331920,1768659090470,-500.0,0.00017808,3]
[402331922,1768659090479,-500.0,0.00017808,3]
[402331924,1768659090488,-566.37,0.00017808,3]
[402331926,1768659090497,-500.0,0.00017808,3]
[402331928,1768659090506,-985.63,0.00017808,3]
[402331930,1768659090516,-1802.89,0.00017808,3]
[402331932,1768659090525,-500.0,0.00017808,3]
[402331934,1768659090534,-500.0,0.00017808,3]
[402331936,1768659090543,-924.88,0.00017808,3]
[402331938,1768659090552,-500.0,0.00017808,3]
[402331940,1768659090563,-875.06,0.00017808,3]
[402331942,1768659090572,-788.81,0.00017808,3]
[402331943,1768659090582,-500.0,0.00017808,3]
[402331946,1768659090591,-523.17,0.00017808,3]
[402331948,1768659090601,-1398.2,0.00017808,3]
[402331950,1768659090611,-500.0,0.00017808,3]
[402331952,1768659090621,-500.0,0.00017808,3]
[402331954,1768659090631,-500.0,0.00017808,3]
[402331956,1768659090640,-752.83,0.00017808,3]
[402331958,1768659090650,-500.0,0.00017808,3]
[402331960,1768659090660,-500.0,0.00017808,3]
[402331961,1768659090669,-500.0,0.00017808,3]
[402331963,1768659090679,-1507.14,0.00017808,3]
[402331965,1768659090688,-500.0,0.00017808,3]
[402331967,1768659090698,-1240.14,0.00017808,3]
[402331969,1768659090707,-646.22,0.00017808,3]
[402331971,1768659090717,-764.23,0.00017808,3]
[402331974,1768659090727,-500.0,0.00017808,3]
[402331975,1768659090736,-500.0,0.00017808,3]
[402331977,1768659090745,-500.0,0.00017808,3]
[402331979,1768659090755,-500.0,0.00017808,3]
[402331981,1768659090764,-500.0,0.00017808,3]
[402331983,1768659090774,-500.0,0.00017808,3]
[402331986,1768659090784,-1946.38,0.00017808,3]
[402331988,1768659090793,-500.0,0.00017808,3]
[402331990,1768659090803,-681.74,0.00017808,3]
[402331992,1768659090813,-500.0,0.00017808,3]
[402331994,1768659090823,-1174.25,0.00017808,3]
[402331996,1768659090833,-500.0,0.00017808,3]
[402331998,1768659090842,-1047.71,0.00017808,3]
[402332000,1768659090852,-500.0,0.00017808,3]
[402332002,1768659090864,-1121.76,0.00017808,3]
[402332004,1768659090874,-628.37,0.00017808,3]
[402332005,1768659090884,-1173.68,0.00017808,3]
[402332007,1768659090893,-895.09,0.00017808,3]
[402332009,1768659090904,-1376.86,0.00017808,3]
[402332011,1768659090914,-500.0,0.00017808,3]
[402332013,1768659090925,-512.63,0.00017808,3]
[402332015,1768659090939,-500.0,0.00017808,3]
[402332017,1768659090948,-718.33,0.00017808,3]
[402332019,1768659090957,-763.87,0.00017808,3]
[402332021,1768659090968,-500.0,0.00017808,3]
[402332023,1768659090978,-1290.77,0.00017808,3]
[402332025,1768659090988,-1726.7,0.00017808,3]
[402332027,1768659090998,-500.0,0.00017808,3]
[402332029,1768659091008,-500.0,0.00017808,3]
[402332031,1768659091018,-887.81,0.00017808,3]
[402332033,1768659091028,-500.0,0.00017808,3]
[402332035,1768659091037,-500.0,0.00017808,3]
[402332038,1768659091048,-500.0,0.00017808,3]
[402332039,1768659091057,-553.61,0.00017808,3]
[402332042,1768659091067,-1005.15,0.00017808,3]
[402332044,1768659091077,-500.0,0.00017808,3]
[402332045,1768659091087,-815.87,0.00017808,3]
[402332048,1768659091097,-500.0,0.00017808,3]
[402332049,1768659091107,-342.33666613,0.00017808,3]
[402332052,1768659091116,-822.47,0.00017808,3]
[402332053,1768659091126,-1463.58,0.00017808,3]
[402332055,1768659091135,-500.0,0.00017808,3]
[402332058,1768659091145,-500.0,0.00017808,3]
[402332059,1768659091155,-500.0,0.00017808,3]
[402332061,1768659091164,-500.0,0.00017808,3]
[402332063,1768659091173,-500.0,0.00017808,3]
[402332065,1768659091183,-500.0,0.00017808,3]
[402332067,1768659091192,-796.2,0.00017808,3]
[402332069,1768659091202,-500.0,0.00017808,3]
[402332071,1768659091212,-500.0,0.00017808,3]
[402332073,1768659091222,-679.44,0.00017808,3]
[402332075,1768659091231,-510.91,0.00017808,3]
[402332077,1768659091241,-500.0,0.00017808,3]
[402332079,1768659091250,-824.67,0.00017808,3]
[402332081,1768659091260,-683.59,0.00017808,3]
[402332083,1768659091270,-500.0,0.00017808,3]
[402332085,1768659091279,-500.0,0.00017808,3]
[402332087,1768659091289,-1224.64,0.00017808,3]
[402332089,1768659091298,-877.29,0.00017808,3]
[402332091,1768659091308,-1471.77,0.00017808,3]
[402332093,1768659091317,-1469.24,0.00017808,3]
[402332095,1768659091327,-626.27,0.00017808,3]
[402332097,1768659091337,-1013.32,0.00017808,3]
[402332098,1768659091347,-567.29,0.00017808,3]
[402332101,1768659091356,-708.52,0.00017808,3]
[402332102,1768659091365,-588.8,0.00017808,3]
[402332104,1768659091376,-965.65,0.00017808,3]
[402332107,1768659091385,-799.45,0.00017808,3]
[402332109,1768659091395,-500.0,0.00017808,3]
[402332111,1768659091404,-664.21,0.00017808,3]
[402332113,1768659091414,-500.0,0.00017808,3]
[402332114,1768659091424,-500.0,0.00017808,3]
[402332117,1768659091434,-500.0,0.00017808,3]
[402332118,1768659091443,-561.86,0.00017808,3]
[402332120,1768659091453,-497.71228405,0.00017808,3]
[402332122,1768659091463,-962.54,0.00017808,3]
[402332124,1768659091473,-500.0,0.00017808,3]
[402332126,1768659091483,-1710.54,0.00017808,3]
[402332128,1768659091492,-1032.59,0.00017808,3]
[402332130,1768659091502,-1392.68,0.00017808,3]
[402332132,1768659091511,-500.0,0.00017808,3]
[402332134,1768659091520,-1703.95,0.00017808,3]
[402332136,1768659091530,-500.0,0.00017808,3]
[402332138,1768659091540,-500.0,0.00017808,3]
[402332140,1768659091550,-500.0,0.00017808,3]
[402332141,1768659091559,-500.0,0.00017808,3]
[402332143,1768659091569,-627.21,0.00017808,3]
[402332145,1768659091579,-500.0,0.00017808,3]
[402332147,1768659091589,-1013.83,0.00017808,3]
[402332149,1768659091598,-575.03,0.00017808,3]
[402332151,1768659091608,-1127.64,0.00017808,3]
[402332153,1768659091617,-1930.5,0.00017808,3]
[402332155,1768659091627,-2381.04,0.00017808,3]
[402332157,1768659091636,-500.0,0.00017808,3]
[402332159,1768659091646,-500.0,0.00017808,3]
[402332161,1768659091655,-500.0,0.00017808,3]
[402332163,1768659091665,-1952.14,0.00017808,3]
[402332165,1768659091674,-1217.45,0.00017808,3]
[402332167,1768659091684,-500.0,0.00017808,3]
[402332169,1768659091693,-500.0,0.00017808,3]
[402332171,1768659091703,-500.0,0.00017808,3]
[402332173,1768659091712,-1199.47,0.00017808,3]
[402332175,1768659091721,-500.0,0.00017808,3]
[402332177,1768659091731,-500.0,0.00017808,3]
[402332179,1768659091740,-876.92,0.00017808,3]
[402332181,1768659091749,-500.0,0.00017808,2]
[402332183,1768659091758,-489.41292271,0.00017808,3]
[402332185,1768659091768,-500.0,0.00017808,3]
[402332194,1768659091845,-574.1,0.00017808,3]
[402332196,1768659091855,-502.95,0.00017808,3]
[402332198,1768659091868,-500.0,0.00017808,3]
[402332200,1768659091878,-500.0,0.00017808,3]
[402332201,1768659091887,-500.0,0.00017808,3]
[402332203,1768659091898,-500.0,0.00017808,3]
[402332206,1768659091908,-500.0,0.00017808,3]
[402332208,1768659091918,-500.0,0.00017808,3]
[402332209,1768659091928,-500.0,0.00017808,3]
[402332211,1768659091938,-538.51,0.00017808,3]
[402332213,1768659091947,-1407.02,0.00017808,3]
[402332215,1768659091957,-500.0,0.00017808,3]
[402332217,1768659091967,-500.0,0.00017808,3]
[402332219,1768659091976,-500.0,0.00017808,3]
[402332222,1768659091987,-500.0,0.00017808,3]
[402332224,1768659091997,-500.0,0.00017808,3]
[402332226,1768659092006,-1435.89,0.00017808,3]
[402332227,1768659092016,-500.0,0.00017808,3]
[402332229,1768659092025,-500.0,0.00017808,3]
[402332231,1768659092036,-500.0,0.00017808,3]
[402332233,1768659092046,-768.41,0.00017808,3]
[402332235,1768659092055,-500.0,0.00017808,3]
[402332237,1768659092065,-500.0,0.00017808,3]
[402332240,1768659092075,-500.0,0.00017808,3]
[402332241,1768659092085,-500.0,0.00017808,3]
[402332243,1768659092094,-500.0,0.00017808,3]
[402332245,1768659092104,-596.93,0.00017808,3]
[402332247,1768659092113,-500.0,0.00017808,3]
[402332249,1768659092123,-255.78047731,0.00017808,3]
[402332251,1768659092132,-500.0,0.00017808,3]
[402332253,1768659092141,-500.0,0.00017808,3]
[402332255,1768659092151,-743.89,0.00017808,3]
[402332257,1768659092160,-500.0,0.00017808,3]
[402332259,1768659092169,-1553.75,0.00017808,3]
[402332261,1768659092179,-439.35438374,0.00017808,3]
[402332263,1768659092188,-500.0,0.00017808,3]
[402332265,1768659092198,-500.0,0.00017808,3]
[402332266,1768659092207,-500.0,0.00017808,3]
[402332268,1768659092217,-1798.52,0.00017808,3]
[402332270,1768659092226,-2617.38,0.00017808,3]
[402332272,1768659092235,-1531.88,0.00017808,3]
[402332274,1768659092245,-500.0,0.00017808,3]
[402332276,1768659092254,-807.81,0.00017808,3]
[402332278,1768659092263,-1265.74,0.00017808,3]
[402332280,1768659092272,-859.86,0.00017808,3]
[402332281,1768659092281,-500.0,0.00017808,3]
[402332283,1768659092290,-500.0,0.00017808,3]
[402332285,1768659092300,-500.0,0.00017808,3]
[402332287,1768659092309,-2068.32,0.00017808,3]
[402332289,1768659092318,-500.0,0.00017808,3]
[402332291,1768659092328,-826.35,0.00017808,3]
[402332293,1768659092338,-878.9,0.00017808,3]
[402332295,1768659092347,-500.0,0.00017808,3]
[402332297,1768659092357,-500.0,0.00017808,3]
[402332299,1768659092367,-500.0,0.00017808,3]
[402332301,1768659092376,-753.78,0.00017808,3]
[402332303,1768659092384,-665.06,0.00017808,3]
[402332305,1768659092394,-1665.15,0.00017808,3]
[402332307,1768659092403,-500.0,0.00017808,3]
[402332309,1768659092413,-155.57377074,0.00017808,3]
[402332311,1768659092422,-500.0,0.00017808,3]
[402332312,1768659092431,-500.0,0.00017808,3]
[402332314,1768659092440,-598.07,0.00017808,3]
[402332316,1768659092450,-749.97,0.00017808,3]
[402332319,1768659092461,-624.25,0.00017808,3]
[402332321,1768659092470,-642.78,0.00017808,3]